fUST/lending_fUST_20240823
["ID","MTS","AMOUNT","RATE_DAILY","PERIOD"]
[335612917,1724385043261,-500.0,0.0001766,2]
[335612918,1724385043271,-539.88,0.0001766,2]
[335612919,1724385043280,-500.0,0.0001766,2]
[335612920,1724385043289,-713.7,0.0001766,2]
[335612921,1724385043299,-500.0,0.0001766,2]
[335612922,1724385043309,-500.0,0.0001766,2]
[335612923,1724385043319,-500.0,0.0001766,2]
[335612924,1724385043329,-500.0,0.0001766,2]
[335612925,1724385043338,-500.0,0.0001766,2]
[335612926,1724385043520,-464.04485381,0.0001766,2]
[335612927,1724385043533,-5278.64,0.0001766,2]
[335612928,1724385043543,-3525.97,0.0001766,2]
[335612929,1724385043553,-500.0,0.0001766,2]
[335612930,1724385043563,-500.0,0.0001766,2]
[335612931,1724385043572,-2025.68,0.0001766,2]
[335612932,1724385043582,-500.0,0.0001766,2]
[335612933,1724385043592,-776.01,0.0001766,2]
[335612934,1724385043603,-599.68,0.0001766,2]
[335612935,1724385043613,-542.62,0.0001766,2]
[335612936,1724385043622,-500.0,0.0001766,2]
[335612937,1724385043632,-500.0,0.0001766,2]
[335612938,1724385043641,-500.0,0.0001766,2]
[335612939,1724385043651,-500.0,0.0001766,2]
[335612941,1724385043661,-2451.17,0.0001766,2]
[335612942,1724385043671,-500.0,0.0001766,2]
[335612943,1724385043684,-500.0,0.0001766,2]
[335612944,1724385043697,-741.29,0.0001766,2]
[335612945,1724385043708,-1452.77,0.0001766,2]
[335612946,1724385043719,-500.0,0.0001766,2]
[335612947,1724385043731,-937.25,0.0001766,2]
[335612948,1724385043742,-500.0,0.0001766,2]
[335612949,1724385043754,-500.0,0.0001766,2]
[335612950,1724385043765,-500.0,0.0001766,2]
[335612951,1724385043776,-500.0,0.0001766,2]
[335612952,1724385043788,-564.46,0.0001766,2]
[335612953,1724385043799,-500.0,0.0001766,2]
[335612954,1724385043809,-500.0,0.0001766,2]
[335612955,1724385043821,-151.0,0.0001766,2]
[335612956,1724385043831,-151.0,0.0001766,2]
[335612957,1724385043850,-776.268439,0.0001766,2]
[335612958,1724385043861,-500.0,0.0001766,2]
[335612959,1724385043872,-776.268439,0.0001766,2]
[335612960,1724385043883,-500.0,0.0001766,2]
[335612961,1724385043895,-151.0,0.0001766,2]
[335612962,1724385043905,-500.0,0.0001766,2]
[335612963,1724385043916,-600.0,0.00017673,2]
[335612964,1724385043926,-207.6636928,0.000177,2]
[335612965,1724385043938,-150.112233,0.000177,2]
[335612966,1724385043949,-150.112242,0.000177,2]
[335612967,1724385043961,-14657.98141414,0.00017741,9]
[335612968,1724385043971,-6832.48554395,0.00017741,2]
[335612969,1724385044714,-517.97960805,0.00017375,2]
[335612970,1724385044725,-595.92,0.0001774,2]
[335612971,1724385044735,-595.92,0.0001774,2]
[335612972,1724385044745,-595.92,0.0001774,2]
[335612973,1724385044756,-595.92,0.0001774,2]
[335612974,1724385044767,-595.92,0.0001774,2]
[335612975,1724385044776,-1183.4621179,0.00017741,2]
[335612976,1724385045108,-500.0,0.00017375,2]
[335612977,1724385045118,-500.0,0.00017375,2]
[335612978,1724385045127,-646.82109151,0.000177,9]
[335612979,1724385045139,-2943.21724418,0.000177,9]
[335612980,1724385045149,-33193.41870025,0.00017741,2]
[335612981,1724385045158,-30027.22001355,0.00017741,2]
[335612982,1724385045169,-580.09146081,0.00017741,2]
[335612983,1724385045181,-262.31192084,0.00017741,2]
[335613003,1724385046250,-20.92686043,0.00017374,2]
[335613006,1724385183152,194.65948041,0.00014,2]
[335613010,1724385404192,240.67072067,0.00014,2]
[335613011,1724385425027,155.20107124,0.00014,2]
[335613012,1724385461385,154.86938481,0.00013971,2]
[335613013,1724385489039,1675.73433664,0.00013971,2]
[335613015,1724385571953,158.47243003,0.00013971,2]
[335613016,1724385582930,1671.80534877,0.00013971,2]
[335613017,1724385594282,414.56476615,0.00013971,2]
[335613019,1724385608294,862.83835129,0.00013971,2]
[335613020,1724385638530,495.526907,0.00013971,2]
[335613021,1724385718371,288.40254199,0.00013971,2]
[335613022,1724385739567,150.68814879,0.00027,120]
[335613023,1724385762938,1119.94028819,0.00013971,2]
[335613024,1724385789619,862.83835129,0.00013971,2]
[335613026,1724385831284,411.26639769,0.00013971,2]
[335613027,1724385845963,158.35596546,0.00013971,2]
[335613029,1724385898886,288.40254199,0.00013971,2]
[335613030,1724385934141,-331.57880595,0.00014245,2]
[335613032,1724385949104,-401.76181045,0.00014245,2]
[335613033,1724385967813,862.83835129,0.00013971,2]
[335613037,1724386048114,-219.574366,0.00014247,2]
[335613038,1724386048137,-288.79616723,0.00014519,2]
[335613039,1724386048159,-277.76886237,0.00016968,2]
[335613040,1724386048180,-862.83835129,0.00017266,2]
[335613041,1724386048201,-1672.56582042,0.00017274,2]
[335613042,1724386048222,-153.0,0.000173,2]
[335613043,1724386048248,-153.0,0.000173,2]
[335613044,1724386048268,-500.0,0.00017353,2]
[335613045,1724386048290,-500.0,0.00017353,2]
[335613046,1724386048311,-500.0,0.00017353,2]
[335613047,1724386048333,-1243.22,0.00017353,2]
[335613048,1724386048609,-500.0,0.00017353,2]
[335613049,1724386048631,-500.0,0.00017353,2]
[335613050,1724386048652,-500.0,0.00017353,2]
[335613051,1724386048674,-3821.77,0.00017353,2]
[335613052,1724386048695,-523.03,0.00017353,2]
[335613053,1724386048714,-588.91,0.00017353,2]
[335613054,1724386048734,-662.47,0.00017353,2]
[335613055,1724386048754,-2920.08,0.00017353,2]
[335613056,1724386048775,-645.91,0.00017353,2]
[335613057,1724386048797,-500.0,0.00017353,2]
[335613058,1724386048818,-500.0,0.00017353,2]
[335613059,1724386048839,-1623.2940553,0.00017353,2]
[335613060,1724386053110,-367.2159447,0.00017353,2]
[335613061,1724386053143,-500.0,0.00017353,2]
[335613062,1724386053164,-285.24638453,0.00017353,2]
[335613073,1724386154141,-236.13276088,0.00014519,2]
[335613095,1724386232590,-332.33395188,0.00016915,2]
[335613096,1724386232601,-322.82419852,0.00017255,2]
[335613097,1724386232615,-1082.86438411,0.00017255,2]
[335613119,1724386238442,-213.65870203,0.00017255,2]
[335613121,1724386238452,-378.80361547,0.00017353,2]
[335613123,1724386238462,-500.0,0.00017353,2]
[335613125,1724386238471,-2356.65,0.00017353,2]
[335613127,1724386238481,-1766.59,0.00017353,2]
[335613129,1724386238490,-982.9,0.00017353,2]
[335613131,1724386238499,-3187.08,0.00017353,2]
[335613133,1724386238508,-500.0,0.00017353,2]
[335613135,1724386238518,-500.0,0.00017353,2]
[335613137,1724386238528,-500.0,0.00017353,2]
[335613139,1724386238537,-500.0,0.00017353,2]
[335613141,1724386238546,-500.0,0.00017353,2]
[335613143,1724386238556,-500.0,0.00017353,2]
[335613145,1724386238565,-1516.3,0.00017353,2]
[335613147,1724386238575,-500.0,0.00017353,2]
[335613149,1724386238585,-500.0,0.00017353,2]
[335613151,1724386238594,-500.0,0.00017353,2]
[335613153,1724386238604,-1279.14,0.00017353,2]
[335613155,1724386238613,-500.0,0.00017353,2]
[335613157,1724386238623,-500.0,0.00017353,2]
[335613160,1724386238633,-1156.95,0.00017353,2]
[335613162,1724386238643,-653.96,0.00017353,2]
[335613164,1724386238652,-1191.42,0.00017353,2]
[335613166,1724386238662,-500.0,0.00017353,2]
[335613168,1724386238672,-501.39276532,0.00017353,2]
[335613170,1724386238681,-500.0,0.00017353,2]
[335613172,1724386238691,-500.0,0.00017353,2]
[335613174,1724386238701,-500.0,0.00017353,2]
[335613176,1724386238711,-500.0,0.00017353,2]
[335613178,1724386238720,-500.0,0.00017353,2]
[335613180,1724386238729,-509.52293211,0.00017353,2]
[335613182,1724386238739,-500.0,0.00017353,2]
[335613184,1724386238749,-500.0,0.00017353,2]
[335613186,1724386238759,-1274.24,0.00017353,2]
[335613188,1724386238769,-500.0,0.00017353,2]
[335613190,1724386238779,-500.0,0.00017353,2]
[335613192,1724386238789,-1508.0,0.00017353,2]
[335613194,1724386238799,-500.0,0.00017353,2]
[335613196,1724386238808,-2070.12,0.00017353,2]
[335613198,1724386238818,-500.0,0.00017353,2]
[335613200,1724386238827,-543.6,0.00017353,2]
[335613203,1724386238837,-634.86,0.00017353,2]
[335613205,1724386238847,-501.23,0.00017353,2]
[335613207,1724386238857,-500.0,0.00017353,2]
[335613209,1724386238866,-564.38,0.00017353,2]
[335613211,1724386238876,-500.0,0.00017353,2]
[335613213,1724386238886,-631.47731312,0.00017353,2]
[335613215,1724386238895,-500.0,0.00017353,2]
[335613217,1724386238905,-500.0,0.00017353,2]
[335613219,1724386238915,-1422.19,0.00017353,2]
[335613221,1724386238925,-2798.41,0.00017353,2]
[335613223,1724386238935,-500.0,0.00017353,2]
[335613225,1724386238944,-618.99,0.00017353,2]
[335613227,1724386238954,-1527.13,0.00017353,2]
[335613229,1724386238964,-89892.220305,0.00017353,2]
[335613231,1724386238974,-500.0,0.00017355,2]
[335613233,1724386238984,-500.0,0.00017355,2]
[335613235,1724386238994,-500.0,0.0001736,2]
[335613237,1724386239003,-500.0,0.00017361,2]
[335613239,1724386239014,-500.0,0.00017361,2]
[335613241,1724386239024,-500.0,0.00017361,2]
[335613243,1724386239034,-500.0,0.00017361,2]
[335613245,1724386239043,-500.0,0.00017361,2]
[335613247,1724386239053,-309.17326541,0.00017361,2]
[335613250,1724386239064,-44946.1101525,0.00017362,2]
[335613252,1724386239073,-500.0,0.00017362,2]
[335613253,1724386239083,-500.0,0.00017362,2]
[335613256,1724386239095,-44946.1101525,0.00017362,2]
[335613258,1724386239105,-500.0,0.00017363,2]
[335613260,1724386239115,-500.0,0.00017363,2]
[335613262,1724386239125,-500.0,0.00017363,2]
[335613264,1724386239136,-500.0,0.00017363,2]
[335613266,1724386239145,-502.52295025,0.00017363,2]
[335613268,1724386239155,-512.91293532,0.00017363,2]
[335613270,1724386239167,-506.7965123,0.00017363,2]
[335613272,1724386239176,-500.0,0.00017363,2]
[335613274,1724386239186,-383.21263275,0.00017363,2]
[335613276,1724386239197,-500.0,0.00017363,2]
[335613278,1724386239207,-500.0,0.00017363,2]
[335613280,1724386239217,-500.0,0.00017363,2]
[335613282,1724386239226,-545.14901493,0.00017363,2]
[335613285,1724386239236,-688.72,0.00017363,2]
[335613287,1724386239245,-2015.02,0.00017363,2]
[335613289,1724386239256,-319.57698704,0.00017363,2]
[335613290,1724386239266,-490.41488901,0.00017363,2]
[335613292,1724386239275,-500.0,0.00017363,2]
[335613293,1724386239285,-500.0,0.00017363,2]
[335613294,1724386239294,-500.0,0.00017363,2]
[335613295,1724386239303,-500.0,0.00017363,2]
[335613296,1724386239313,-297.12522781,0.00017363,2]
[335613297,1724386239323,-500.0,0.00017363,2]
[335613298,1724386239332,-500.0,0.00017363,2]
[335613299,1724386239342,-500.0,0.00017363,2]
[335613300,1724386239353,-500.0,0.00017363,2]
[335613301,1724386239363,-500.0,0.00017363,2]
[335613302,1724386239373,-500.0,0.00017363,2]
[335613303,1724386239382,-500.0,0.00017363,2]
[335613304,1724386239392,-500.0,0.00017363,2]
[335613305,1724386239402,-500.0,0.00017363,2]
[335613306,1724386239411,-500.0,0.00017363,2]
[335613307,1724386239425,-500.0,0.00017363,2]
[335613308,1724386239435,-500.0,0.00017363,2]
[335613309,1724386239444,-500.0,0.00017363,2]
[335613310,1724386239454,-203.57970749,0.00017363,2]
[335613311,1724386239463,-500.0,0.00017363,2]
[335613312,1724386239474,-500.0,0.00017363,2]
[335613313,1724386239484,-500.0,0.00017363,2]
[335613314,1724386239493,-500.0,0.00017363,2]
[335613315,1724386239503,-500.0,0.00017363,2]
[335613316,1724386239513,-500.0,0.00017363,2]
[335613317,1724386239523,-500.0,0.00017363,2]
[335613318,1724386239533,-500.0,0.00017363,2]
[335613319,1724386239543,-200.0,0.00017363,2]
[335613320,1724386239556,-500.0,0.00017363,2]
[335613321,1724386239565,-450.55309569,0.00017363,2]
[335613322,1724386239577,-500.0,0.00017363,2]
[335613323,1724386239587,-500.0,0.00017363,2]
[335613324,1724386239597,-500.0,0.00017363,2]
[335613325,1724386239608,-500.0,0.00017363,2]
[335613326,1724386239618,-500.0,0.00017363,2]
[335613327,1724386239628,-1421.38,0.00017363,2]
[335613328,1724386239639,-575.63845928,0.00017363,2]
[335613329,1724386239649,-518.12396184,0.00017363,2]
[335613330,1724386239658,-500.0,0.00017363,2]
[335613331,1724386239667,-500.0,0.00017363,2]
[335613332,1724386239677,-500.0,0.00017363,2]
[335613333,1724386239686,-742.75,0.00017363,2]
[335613334,1724386239695,-500.0,0.00017363,2]
[335613336,1724386239910,-548.54,0.00017363,2]
[335613337,1724386239921,-522.99,0.00017363,2]
[335613338,1724386239930,-500.0,0.00017363,2]
[335613339,1724386239941,-500.0,0.00017363,2]
[335613340,1724386239951,-500.0,0.00017363,2]
[335613341,1724386239962,-500.0,0.00017363,2]
[335613342,1724386239971,-500.0,0.00017363,2]
[335613343,1724386239981,-556.6,0.00017363,2]
[335613344,1724386239990,-500.0,0.00017363,2]
[335613345,1724386240000,-500.0,0.00017363,2]
[335613346,1724386240009,-500.0,0.00017363,2]
[335613347,1724386240018,-770.13,0.00017363,2]
[335613348,1724386240027,-500.0,0.00017363,2]
[335613349,1724386240037,-500.0,0.00017363,2]
[335613350,1724386240047,-434.24369983,0.00017363,2]
[335613351,1724386240056,-500.0,0.00017363,2]
[335613352,1724386240066,-500.0,0.00017363,2]
[335613353,1724386240075,-500.0,0.00017363,2]
[335613354,1724386240087,-500.0,0.00017363,2]
[335613355,1724386240097,-500.0,0.00017363,2]
[335613356,1724386240106,-845.11,0.00017363,2]
[335613357,1724386240115,-500.0,0.00017363,2]
[335613358,1724386240125,-500.0,0.00017363,2]
[335613359,1724386240135,-500.0,0.00017363,2]
[335613360,1724386240145,-522.31,0.00017363,2]
[335613361,1724386240155,-500.0,0.00017363,2]
[335613362,1724386240168,-500.0,0.00017363,2]
[335613363,1724386240177,-500.0,0.00017363,2]
[335613364,1724386240186,-503.22938622,0.00017363,2]
[335613365,1724386240196,-599.40315967,0.00017363,2]
[335613366,1724386240206,-500.0,0.00017363,2]
[335613367,1724386240216,-617.54714737,0.00017363,2]
[335613368,1724386240226,-651.67,0.00017363,2]
[335613370,1724386240235,-845.89,0.00017363,2]
[335613372,1724386240244,-500.0,0.00017363,2]
[335613373,1724386240254,-500.0,0.00017363,2]
[335613374,1724386240265,-500.0,0.00017363,2]
[335613375,1724386240274,-500.0,0.00017363,2]
[335613376,1724386240284,-190.1906689,0.00017363,2]
[335613377,1724386240294,-500.0,0.00017363,2]
[335613378,1724386240303,-500.0,0.00017363,2]
[335613379,1724386240313,-500.0,0.00017363,2]
[335613380,1724386240322,-517.69,0.00017363,2]
[335613381,1724386240332,-630.14,0.00017363,2]
[335613382,1724386240342,-500.0,0.00017363,2]
[335613383,1724386240351,-500.0,0.00017363,2]
[335613384,1724386240361,-500.0,0.00017363,2]
[335613385,1724386240370,-500.0,0.00017363,2]
[335613386,1724386240380,-500.0,0.00017363,2]
[335613387,1724386240389,-500.0,0.00017363,2]
[335613388,1724386240399,-500.0,0.00017363,2]
[335613389,1724386240408,-500.0,0.00017363,2]
[335613390,1724386240418,-500.0,0.00017363,2]
[335613391,1724386240427,-500.0,0.00017363,2]
[335613392,1724386240436,-500.0,0.00017363,2]
[335613393,1724386240445,-500.0,0.00017363,2]
[335613394,1724386240454,-500.0,0.00017363,2]
[335613395,1724386240464,-500.0,0.00017363,2]
[335613396,1724386240474,-500.0,0.00017363,2]
[335613397,1724386240483,-500.0,0.00017363,2]
[335613398,1724386240492,-500.0,0.00017363,2]
[335613399,1724386240502,-500.0,0.00017363,2]
[335613400,1724386240511,-500.0,0.00017363,2]
[335613401,1724386240522,-500.0,0.00017363,2]
[335613402,1724386240532,-500.0,0.00017363,2]
[335613403,1724386240541,-500.0,0.00017363,2]
[335613404,1724386240550,-500.0,0.00017363,2]
[335613405,1724386240560,-500.0,0.00017363,2]
[335613406,1724386240570,-550.24,0.00017363,2]
[335613407,1724386240579,-500.0,0.00017363,2]
[335613408,1724386240589,-500.0,0.00017363,2]
[335613409,1724386240598,-500.0,0.00017363,2]
[335613410,1724386240608,-500.0,0.00017363,2]
[335613411,1724386240617,-500.0,0.00017363,2]
[335613412,1724386240626,-500.0,0.00017363,2]
[335613413,1724386240636,-500.0,0.00017363,2]
[335613414,1724386240645,-500.0,0.00017363,2]
[335613415,1724386240655,-500.0,0.00017363,2]
[335613416,1724386240664,-500.0,0.00017363,2]
[335613417,1724386240674,-555.29,0.00017363,2]
[335613418,1724386240684,-500.0,0.00017363,2]
[335613419,1724386240695,-713.57,0.00017363,2]
[335613420,1724386240706,-500.0,0.00017363,2]
[335613421,1724386240716,-500.0,0.00017363,2]
[335613422,1724386240725,-500.0,0.00017363,2]
[335613423,1724386240734,-1000.0,0.00017363,2]
[335613424,1724386240744,-500.0,0.00017363,2]
[335613425,1724386240753,-500.0,0.00017363,2]
[335613426,1724386240763,-500.0,0.00017363,2]
[335613427,1724386240774,-500.0,0.00017363,2]
[335613428,1724386240783,-500.0,0.00017363,2]
[335613429,1724386240793,-500.0,0.00017363,2]
[335613430,1724386240803,-500.0,0.00017363,2]
[335613431,1724386240813,-500.0,0.00017363,2]
[335613432,1724386240823,-961.32,0.00017363,2]
[335613433,1724386240834,-500.0,0.00017363,2]
[335613434,1724386240844,-500.0,0.00017363,2]
[335613435,1724386240853,-500.0,0.00017363,2]
[335613436,1724386240863,-500.0,0.00017363,2]
[335613437,1724386240873,-500.0,0.00017363,2]
[335613438,1724386240883,-588.35,0.00017363,2]
[335613439,1724386240893,-500.0,0.00017363,2]
[335613440,1724386240903,-500.0,0.00017363,2]
[335613441,1724386240912,-500.0,0.00017363,2]
[335613442,1724386240923,-500.0,0.00017363,2]
[335613443,1724386240932,-500.0,0.00017363,2]
[335613444,1724386240941,-500.0,0.00017363,2]
[335613445,1724386240951,-500.0,0.00017363,2]
[335613446,1724386240960,-500.0,0.00017363,2]
[335613447,1724386240970,-500.0,0.00017363,2]
[335613448,1724386240981,-500.0,0.00017363,2]
[335613449,1724386240991,-500.0,0.00017363,2]
[335613450,1724386241002,-500.0,0.00017363,2]
[335613451,1724386241013,-500.0,0.00017363,2]
[335613452,1724386241029,-598.23440688,0.00017363,2]
[335613453,1724386241040,-500.0,0.00017363,2]
[335613454,1724386241050,-500.0,0.00017363,2]
[335613455,1724386241060,-500.0,0.00017363,2]
[335613456,1724386241070,-500.0,0.00017363,2]
[335613457,1724386241083,-500.0,0.00017363,2]
[335613458,1724386241095,-522.87651549,0.00017363,2]
[335613459,1724386241104,-500.0,0.00017363,2]
[335613460,1724386241114,-500.0,0.00017363,2]
[335613461,1724386241124,-500.0,0.00017363,2]
[335613462,1724386241136,-500.0,0.00017363,2]
[335613463,1724386241146,-500.0,0.00017363,2]
[335613464,1724386241155,-176.27516391,0.00017363,2]
[335613465,1724386241166,-500.0,0.00017363,2]
[335613466,1724386241175,-500.0,0.00017363,2]
[335613467,1724386241184,-500.0,0.00017363,2]
[335613468,1724386241193,-500.0,0.00017363,2]
[335613469,1724386241202,-500.0,0.00017363,2]
[335613470,1724386241211,-500.0,0.00017363,2]
[335613471,1724386241220,-500.0,0.00017363,2]
[335613472,1724386241230,-500.0,0.00017363,2]
[335613473,1724386241239,-500.0,0.00017363,2]
[335613474,1724386241249,-500.0,0.00017363,2]
[335613475,1724386241258,-500.0,0.00017363,2]
[335613476,1724386241267,-500.0,0.00017363,2]
[335613477,1724386241276,-500.0,0.00017363,2]
[335613478,1724386241285,-500.0,0.00017363,2]
[335613479,1724386241294,-500.0,0.00017363,2]
[335613480,1724386241303,-638.23,0.00017363,2]
[335613481,1724386241312,-500.0,0.00017363,2]
[335613482,1724386241322,-500.0,0.00017363,2]
[335613483,1724386241332,-500.0,0.00017363,2]
[335613484,1724386241342,-500.0,0.00017363,2]
[335613485,1724386241351,-500.0,0.00017363,2]
[335613486,1724386241360,-500.0,0.00017363,2]
[335613487,1724386241370,-500.0,0.00017363,2]
[335613488,1724386241379,-372.46490361,0.00017363,2]
[335613489,1724386241389,-500.0,0.00017363,2]
[335613490,1724386241399,-500.0,0.00017363,2]
[335613491,1724386241408,-500.0,0.00017363,2]
[335613492,1724386241417,-560.72,0.00017363,2]
[335613493,1724386241427,-500.0,0.00017363,2]
[335613494,1724386241437,-500.0,0.00017363,2]
[335613495,1724386241446,-500.0,0.00017363,2]
[335613496,1724386241456,-501.82316621,0.00017363,2]
[335613497,1724386241465,-500.0,0.00017363,2]
[335613498,1724386241474,-500.0,0.00017363,2]
[335613499,1724386241483,-743.46,0.00017363,2]
[335613500,1724386241492,-508.3,0.00017363,2]
[335613501,1724386241502,-500.0,0.00017363,2]
[335613502,1724386241511,-500.0,0.00017363,2]
[335613503,1724386241521,-500.0,0.00017363,2]
[335613504,1724386241530,-500.0,0.00017363,2]
[335613505,1724386241539,-500.0,0.00017363,2]
[335613506,1724386241548,-511.55909388,0.00017363,2]
[335613507,1724386241557,-500.0,0.00017363,2]
[335613508,1724386241566,-500.0,0.00017363,2]
[335613509,1724386241576,-500.0,0.00017363,2]
[335613510,1724386241585,-464.04485381,0.00017363,2]
[335613511,1724386241594,-500.0,0.00017363,2]
[335613512,1724386241603,-500.0,0.00017363,2]
[335613513,1724386241612,-5498.47,0.00017363,2]
[335613514,1724386241621,-3672.62,0.00017363,2]
[335613515,1724386241631,-500.0,0.00017363,2]
[335613516,1724386241640,-500.0,0.00017363,2]
[335613517,1724386241649,-2109.94,0.00017363,2]
[335613518,1724386241659,-969.55,0.00017363,2]
[335613519,1724386241668,-500.0,0.00017363,2]
[335613520,1724386241677,-500.0,0.00017363,2]
[335613521,1724386241687,-500.0,0.00017363,2]
[335613522,1724386241696,-500.0,0.00017363,2]
[335613523,1724386241705,-500.0,0.00017363,2]
[335613524,1724386241715,-500.0,0.00017363,2]
[335613525,1724386241724,-500.0,0.00017363,2]
[335613526,1724386241733,-808.29,0.00017363,2]
[335613527,1724386241742,-500.0,0.00017363,2]
[335613528,1724386241751,-500.0,0.00017363,2]
[335613529,1724386241760,-500.0,0.00017363,2]
[335613530,1724386241769,-500.0,0.00017363,2]
[335613531,1724386241779,-500.0,0.00017363,2]
[335613532,1724386241788,-500.0,0.00017363,2]
[335613533,1724386241798,-539.28,0.00017363,2]
[335613534,1724386241807,-500.0,0.00017363,2]
[335613535,1724386241817,-500.0,0.00017363,2]
[335613536,1724386241827,-522.34866599,0.00017363,2]
[335613537,1724386241836,-565.19,0.00017363,2]
[335613538,1724386241846,-551.89605431,0.00017363,2]
[335613539,1724386241855,-500.0,0.00017363,2]
[335613540,1724386241865,-500.0,0.00017363,2]
[335613541,1724386241874,-500.0,0.00017363,2]
[335613542,1724386241884,-500.0,0.00017363,2]
[335613543,1724386241893,-500.0,0.00017363,2]
[335613544,1724386241903,-500.0,0.00017363,2]
[335613545,1724386241913,-500.0,0.00017363,2]
[335613546,1724386241922,-624.63,0.00017363,2]
[335613547,1724386241932,-500.0,0.00017363,2]
[335613548,1724386241942,-500.0,0.00017363,2]
[335613549,1724386241952,-500.0,0.00017363,2]
[335613550,1724386241963,-637.72,0.00017363,2]
[335613551,1724386241973,-500.0,0.00017363,2]
[335613552,1724386241982,-547.62,0.00017363,2]
[335613553,1724386241992,-500.0,0.00017363,2]
[335613554,1724386242001,-500.0,0.00017363,2]
[335613555,1724386242011,-500.0,0.00017363,2]
[335613556,1724386242022,-500.0,0.00017363,2]
[335613557,1724386242032,-500.0,0.00017363,2]
[335613558,1724386242041,-500.0,0.00017363,2]
[335613559,1724386242051,-2553.12,0.00017363,2]
[335613560,1724386242060,-500.0,0.00017363,2]
[335613561,1724386242070,-1513.2,0.00017363,2]
[335613562,1724386242079,-500.0,0.00017363,2]
[335613563,1724386242092,-500.0,0.00017363,2]
[335613564,1724386242102,-409.99527106,0.00017363,2]
[335613565,1724386242111,-741.29,0.00017363,2]
[335613566,1724386242121,-500.0,0.00017363,2]
[335613567,1724386242131,-500.0,0.00017363,2]
[335613568,1724386242140,-500.0,0.00017363,2]
[335613569,1724386242149,-500.0,0.00017363,2]
[335613570,1724386242159,-500.0,0.00017363,2]
[335613571,1724386242168,-500.0,0.00017363,2]
[335613572,1724386242177,-500.0,0.00017363,2]
[335613573,1724386242186,-1779.82,0.00017363,2]
[335613574,1724386242196,-937.25,0.00017363,2]
[335613575,1724386242205,-500.0,0.00017363,2]
[335613576,1724386242214,-520.7,0.00017363,2]
[335613577,1724386242223,-500.0,0.00017363,2]
[335613578,1724386242233,-500.0,0.00017363,2]
[335613579,1724386242242,-500.0,0.00017363,2]
[335613580,1724386242251,-500.0,0.00017363,2]
[335613581,1724386242260,-500.0,0.00017363,2]
[335613582,1724386242269,-760.14,0.00017363,2]
[335613583,1724386242279,-500.0,0.00017363,2]
[335613584,1724386242288,-500.0,0.00017363,2]
[335613585,1724386242297,-500.0,0.00017363,2]
[335613586,1724386242306,-500.0,0.00017363,2]
[335613587,1724386242315,-500.0,0.00017363,2]
[335613588,1724386242324,-587.94,0.00017363,2]
[335613589,1724386242334,-311.35422224,0.00017363,2]
[335613590,1724386242343,-500.0,0.00017363,2]
[335613591,1724386242353,-500.0,0.00017363,2]
[335613592,1724386242363,-500.0,0.00017363,2]